[Event "FIDE WCCC G12 2018"]
[Site "Santiago de Compostela"]
[Date "2018.11.05"]
[Round "2"]
[White "Abdala Cancino, Patricia Anastas"]
[Black "Volovich, Julia"]
[Result "0-1"]
[ECO "C00"]
[WhiteElo "1551"]
[BlackElo "1735"]
[Annotator "NA RC"]
[PlyCount "90"]
[EventDate "2018.11.04"]
[EventType "swiss"]
[EventCountry "ESP"]
[SourceTitle "playchess.com"]
[Source "ChessBase"]
[SourceQuality "1"]
[TimeControl "40/5400+30:1800+30"]

1. e4 {[%emt 0:00:00]} e6 {[%emt 0:00:00]} 2. d3 {[%emt 0:00:00]} d5 {[%emt 0:00:00]} 3. Nd2 {[%emt 0:00:18]} c5 {[%emt 0:00:00]} 4. g3 {[%emt 0:00:18]} Bd6 {[%emt 0:00:00]} 5. Bg2 {[%emt 0:00:14]} Ne7 {[%emt 0:00:00]} 6. Ngf3 {[%emt 0:00:23]} Nbc6 {[%emt 0:00:00]} 7. O-O {[%emt 0:00:14]} O-O {[%emt 0:00:00]} 8. Re1 {[%emt 0:00:09]} b5 {[%emt 0:00:24]} 9. e5 {[%emt 0:00:19]} Bc7 {[%emt 0:00:11]} 10. Nf1 {[%emt 0:00:22]} Bb7 {[%emt 0:01:32]} 11. h4 {[%emt 0:00:17]} Ng6 {[%emt 0:02:15]} 12. Bf4 {[%emt 0:03:25]} Nxf4 {[%emt 0:03:47]} 13. gxf4 {[%emt 0:00:09]} f6 {[%emt 0:03:58]} 14. Bh3 {[%emt 0:01:59]} Bc8 {[%emt 0:03:44]} 15. Ng3 {[%emt 0:02:26]} fxe5 {[%emt 0:09:03]} 16. fxe5 {[%emt 0:06:03]} Qe7 {[%emt 0:05:21]} 17. Qe2 {[%emt 0:04:05]} Bd7 {[%emt 0:07:19]} 18. Kh2 {[%emt 0:13:27]} Rf4 {[%emt 0:06:32]} 19. Nh5 {[%emt 0:03:13]} Rxf3 {[%emt 0:03:55]} 20. Qxf3 {[%emt 0:01:01]} Nxe5 {[%emt 0:00:43]} 21. Rxe5 {[%emt 0:02:33]} Bxe5+ {[%emt 0:00:08]} 22. Kh1 {[%emt 0:00:18]} Qxh4 {[%emt 0:03:49]} 23. Qg4 {[%emt 0:03:25]} Qxg4 {[%emt 0:00:49]} 24. Bxg4 {[%emt 0:00:08]} g6 {[%emt 0:04:35]} 25. Ng3 {[%emt 0:06:06]} Bxb2 {[%emt 0:01:23]} 26. Re1 {[%emt 0:00:39]} Kf7 {[%emt 0:01:20]} 27. Nf1 {[%emt 0:00:47]} Re8 {[%emt 0:02:15]} 28. Ne3 {[%emt 0:00:22]} Bd4 {[%emt 0:00:39]} 29. Nd1 {[%emt 0:01:18]} b4 {[%emt 0:00:55]} 30. Re2 {[%emt 0:00:18]} h5 {[%emt 0:01:21]} 31. Bh3 {[%emt 0:00:07]} g5 {[%emt 0:01:06]} 32. Ne3 {[%emt 0:00:08]} Bxe3 {[%emt 0:00:43]} 33. Rxe3 {[%emt 0:00:06]} g4 {[%emt 0:00:58]} 34. Bf1 {[%emt 0:00:19]} Kf6 {[%emt 0:00:48]} 35. Kh2 {[%emt 0:00:20]} h4 {[%emt 0:01:23]} 36. Be2 {[%emt 0:00:06]} Rg8 {[%emt 0:01:02]} 37. Bd1 {[%emt 0:00:19]} Kf5 {[%emt 0:00:59]} 38. Kg2 {[%emt 0:01:14]} Kf4 {[%emt 0:00:39]} 39. Re1 {[%emt 0:00:53]} Rg6 {[%emt 0:01:49]} 40. Rh1 {[%emt 0:00:00]} Rh6 {[%emt 0:00:00]} 41. Kf1 {[%emt 0:01:07]} e5 {[%emt 0:01:45]} 42. Kg2 {[%emt 0:00:16]} h3+ {[%emt 0:00:27]} 43. Kh2 {[%emt 0:00:16]} Ra6 {[%emt 0:00:11]} 44. Rg1 {[%emt 0:00:10]} Rxa2 {[%emt 0:00:39]} 45. Rg3 {[%emt 0:00:12]} b3 {[%emt 0:00:17]} 0-1

[Event "FIDE WCCC G12 2018"]
[Site "Santiago de Compostela"]
[Date "2018.11.05"]
[Round "2"]
[White "Berezovsky, Fiorina"]
[Black "Hernandez Tellez, Claudia"]
[Result "1-0"]
[ECO "B31"]
[WhiteElo "1492"]
[BlackElo "1721"]
[Annotator "NA RC"]
[PlyCount "95"]
[EventDate "2018.11.04"]
[EventType "swiss"]
[EventCountry "ESP"]
[SourceTitle "playchess.com"]
[Source "ChessBase"]
[SourceQuality "1"]
[TimeControl "40/5400+30:1800+30"]

1. e4 {[%emt 0:00:00]} c5 {[%emt 0:00:00]} 2. Nf3 {[%emt 0:00:00]} Nc6 {[%emt 0:00:00]} 3. Bb5 {[%emt 0:00:50]} g6 {[%emt 0:01:15]} 4. Bxc6 {[%emt 0:01:48]} bxc6 {[%emt 0:00:17]} 5. d4 {[%emt 0:01:34]} cxd4 {[%emt 0:13:23]} 6. Qxd4 {[%emt 0:02:08]} Nf6 {[%emt 0:00:26]} 7. e5 {[%emt 0:01:36]} Nd5 {[%emt 0:01:31]} 8. e6 {[%emt 0:05:53]} f6 {[%emt 0:00:52]} 9. exd7+ {[%emt 0:12:31]} Qxd7 {[%emt 0:01:01]} 10. O-O {[%emt 0:02:04]} Bg7 {[%emt 0:03:59]} 11. Nc3 {[%emt 0:03:12]} e5 {[%emt 0:07:23]} 12. Re1 {[%emt 0:02:02]} Nxc3 {[%emt 0:00:45]} 13. Qxc3 {[%emt 0:00:38]} O-O {[%emt 0:00:40]} 14. Be3 {[%emt 0:01:01]} Qc7 {[%emt 0:09:05]} 15. Rad1 {[%emt 0:04:15]} Be6 {[%emt 0:07:07]} 16. Bc5 {[%emt 0:06:48]} Rfd8 {[%emt 0:02:00]} 17. Bb4 {[%emt 0:12:48]} Rxd1 {[%emt 0:13:28]} 18. Rxd1 {[%emt 0:02:17]} Bf5 {[%emt 0:03:21]} 19. Qc4+ {[%emt 0:03:34]} Kh8 {[%emt 0:09:36]} 20. h3 {[%emt 0:11:38]} Bf8 {[%emt 0:04:57]} 21. Bxf8 {[%emt 0:06:06]} Rxf8 {[%emt 0:00:16]} 22. Qc5 {[%emt 0:01:11]} Rc8 {[%emt 0:03:40]} 23. c3 {[%emt 0:05:01]} Be4 {[%emt 0:01:23]} 24. Qe3 {[%emt 0:02:06]} Bf5 {[%emt 0:01:36]} 25. g4 {[%emt 0:01:26]} Be6 {[%emt 0:00:22]} 26. b3 {[%emt 0:01:44]} c5 {[%emt 0:01:51]} 27. c4 {[%emt 0:01:09]} g5 {[%emt 0:01:28]} 28. Qd3 {[%emt 0:02:04]} Qc6 {[%emt 0:00:30]} 29. Nd2 {[%emt 0:01:00]} Kg7 {[%emt 0:03:59]} 30. Ne4 {[%emt 0:00:19]} Re8 {[%emt 0:00:26]} 31. Qe3 {[%emt 0:00:38]} Qa6 {[%emt 0:01:49]} 32. Nxc5 {[%emt 0:00:55]} Qxa2 {[%emt 0:00:14]} 33. Nxe6+ {[%emt 0:00:38]} Rxe6 {[%emt 0:00:05]} 34. Rd7+ {[%emt 0:00:27]} Kg8 {[%emt 0:01:51]} 35. Qd3 {[%emt 0:00:45]} Qa1+ {[%emt 0:02:13]} 36. Kh2 {[%emt 0:00:18]} e4 {[%emt 0:00:14]} 37. Rd8+ {[%emt 0:00:29]} Kf7 {[%emt 0:00:13]} 38. Qd7+ {[%emt 0:00:14]} Re7 {[%emt 0:00:05]} 39. Qd5+ {[%emt 0:00:12]} Kg6 {[%emt 0:02:04]} 40. Qg8+ {[%emt 0:00:00]} Kh6 {[%emt 0:00:00]} 41. Qf8+ {[%emt 0:04:22]} Rg7 {[%emt 0:00:18]} 42. Rd7 {[%emt 0:02:43]} Qe5+ {[%emt 0:00:47]} 43. Kg2 {[%emt 0:00:30]} f5 {[%emt 0:00:29]} 44. Rd6+ {[%emt 0:00:10]} Qxd6 {[%emt 0:00:08]} 45. Qxd6+ {[%emt 0:00:03]} Rg6 {[%emt 0:00:01]} 46. Qf8+ {[%emt 0:00:20]} Rg7 {[%emt 0:00:09]} 47. gxf5 {[%emt 0:00:07]} e3 {[%emt 0:00:16]} 48. f6 {[%emt 0:00:36]} 1-0

[Event "FIDE WCCC G12 2018"]
[Site "Santiago de Compostela"]
[Date "2018.11.08"]
[Round "4"]
[White "Van Foreest, Machteld"]
[Black "Minaeva, Juliana"]
[Result "1-0"]
[ECO "B54"]
[WhiteElo "2003"]
[BlackElo "1608"]
[Annotator "NA"]
[PlyCount "75"]
[EventDate "2018.11.04"]
[EventType "swiss"]
[EventCountry "ESP"]
[SourceTitle "playchess.com"]
[Source "ChessBase"]
[SourceQuality "1"]
[TimeControl "40/5400+30:1800+30"]

{[%evp 8,73,42,32767,32767,32767,32767,52,103,86,115,106,106,75,88,81,90,32767,83,80,32767,-86,99,93,113,92,104,92,123,125,178,81,101,54,56,65,88,32767,75,53,76,63,32767,34,36,35,44,20,0,32767,32767,32767,133,116,32767,32767,32767,32767,32767,32767,215,152,32767,190,852,32767,29994,29987]} 1. e4 {[%emt 0:00:00]} c5 {[%emt 0:00:00]} 2. Nf3 {[%emt 0:00:00]} d6 {[%emt 0:00:00]} 3. d4 {[%emt 0:00:00]} cxd4 {[%emt 0:00:04]} 4. Nxd4 {[%emt 0:00:00]} e5 {[%emt 0:00:22]} 5. Bb5+ {[%emt 0:00:21]} Bd7 {[%emt 0:00:23] B54: Sicilian: 2...d6 3 d4 cxd4 4 Nxd4, Unusual Lines} 6. Bxd7+ {[%emt 0:00:55]} Qxd7 {[%emt 0:00:15]} 7. Nf5 {[%emt 0:03:47] LiveBook: 8 Games} (7. Ne2 Qg4 8. O-O Qxe4 9. Nbc3 Qc6 10. f4 Nd7 11. Ng3 Ngf6 12. Kh1 h5 13. h3 {0-1 (27) Grischuk,A (2710)-Grachev,B (2583) playchess.com INT 2006}) 7... Qc6 {[%emt 0:04:00]} 8. Nc3 {[%emt 0:08:52]} Nf6 {[%emt 0:01:50]} 9. f3 {[%emt 0:08:52]} g6 $146 {[%emt 0:04:27]} ({Predecessor:} 9... Nbd7 10. Bg5 h6 11. Bxf6 Nxf6 12. Qd3 g6 13. Ne3 {0-1 (53) Bednay,D (2301)-Emodi,B (2361) Hungary 2008}) 10. Ne3 {[%emt 0:03:31]} Be7 {[%emt 0:03:59]} 11. O-O {[%emt 0:06:36]} Nbd7 {[%emt 0:03:12]} 12. Ned5 {[%emt 0:04:00]} Bd8 {[%emt 0:06:46]} 13. Bh6 {[%emt 0:02:44]} Rc8 {[%emt 0:11:32]} 14. Bg7 $2 {[%emt 0:12:52] [#]} (14. Ne3 $16 {und es läuft.}) 14... Rg8 $2 {[%emt 0:08:26]} (14... Nxd5 $1 $17 {stays on course.} 15. Nxd5 (15. Qxd5 Rg8 $17) 15... Rg8) 15. Bxf6 $1 {[%emt 0:01:17]} Nxf6 {[%emt 0:02:10]} 16. Nxf6+ {[%emt 0:00:39]} Bxf6 {[%emt 0:00:10]} 17. Nd5 {[%emt 0:00:18]} Be7 {[%emt 0:03:43]} 18. c3 {[%emt 0:00:57]} f5 {[%emt 0:09:35]} (18... Rg7 $16 {might work better.} 19. f4 Qc4) 19. Qd2 {[%emt 0:06:02]} (19. f4 $18 {bietet bessere Gewinnchancen.}) 19... f4 {[%emt 0:05:23]} 20. Rad1 {[%emt 0:02:56]} ({White should try} 20. g3 $16) 20... g5 {[%emt 0:03:17]} 21. Kh1 {[%emt 0:01:20]} h5 {[%emt 0:04:38]} 22. b3 {[%emt 0:02:05]} Qd7 {[%emt 0:05:39]} 23. Qf2 {[%emt 0:02:01]} b6 {[%emt 0:01:24]} 24. Qe2 {[%emt 0:05:25]} Kf7 {[%emt 0:05:02]} 25. c4 {[%emt 0:01:41]} Rg6 {[%emt 0:01:47]} 26. b4 {[%emt 0:01:42]} Qe6 {[%emt 0:02:07]} 27. c5 {[%emt 0:01:45]} bxc5 {[%emt 0:03:21]} 28. Qa6 {[%emt 0:01:12]} Qd7 {[%emt 0:01:44]} 29. bxc5 {[%emt 0:02:33]} Rxc5 {[%emt 0:03:07] [#]} 30. Rb1 $1 {[%emt 0:03:43]} Rc6 {[%emt 0:03:03]} 31. Rb7 {[%emt 0:00:19]} Rxa6 {[%emt 0:00:56]} 32. Rxd7 {[%emt 0:00:02]} Re6 {[%emt 0:01:47]} 33. Rb1 {[%emt 0:05:58]} Rxa2 {[%emt 0:01:01]} 34. h3 {[%emt 0:00:12]} a5 {[%emt 0:00:37]} 35. Rbb7 {[%emt 0:00:14]} a4 $18 {[%emt 0:00:21]} (35... Ra1+ $16 36. Kh2 g4 37. hxg4 (37. Rxe7+ Rxe7 38. Rxe7+ Kg6 $18) 37... hxg4 38. Rxe7+ Rxe7 39. Rxe7+ Kg6) 36. Nxe7 {[%emt 0:00:10]} Ke8 {[%emt 0:00:35]} 37. Nd5 {[%emt 0:00:12]} a3 {[%emt 0:00:29]} 38. Rh7 {[%emt 0:00:10]} 1-0

[Event "FIDE WCCC G12 2018"]
[Site "Santiago de Compostela"]
[Date "2018.11.08"]
[Round "4"]
[White "Vicze, Kata"]
[Black "Voriskova, Anna"]
[Result "1/2-1/2"]
[ECO "B56"]
[WhiteElo "1828"]
[BlackElo "1601"]
[Annotator "NA RC"]
[PlyCount "76"]
[EventDate "2018.11.04"]
[EventType "swiss"]
[EventCountry "ESP"]
[SourceTitle "playchess.com"]
[Source "ChessBase"]
[SourceQuality "1"]
[TimeControl "40/5400+30:1800+30"]

{[%evp 8,76,15,32767,32767,32767,32767,32767,25,14,44,51,39,18,31,5,27,30,42,9,32767,15,20,0,5,0,-4,-26,7,6,8,4,56,32767,32767,32767,33,44,79,77,111,0,0,-13,-19,32767,9,-124,-17,-24,32767,32767,32767,32767,32767,32767,-44,32767,32767,32767,-31,-52,-52,-133,32767,32767,32767,32767,-54,-57,-50]} 1. e4 {[%emt 0:00:00]} c5 {[%emt 0:00:00]} 2. Nf3 {[%emt 0:00:00]} d6 {[%emt 0:00:00]} 3. d4 {[%emt 0:00:00]} cxd4 {[%emt 0:00:00]} 4. Nxd4 {[%emt 0:00:04]} Nf6 {[%emt 0:00:01]} 5. Nc3 {[%emt 0:01:03]} Nc6 {[%emt 0:00:08]} 6. f3 {[%emt 0:03:09]} e5 {[%emt 0:02:33]} 7. Nb3 {[%emt 0:01:47]} Be6 {[%emt 0:04:43]} 8. Nd5 {[%emt 0:06:41]} Bxd5 {[%emt 0:13:57] LiveBook: 36 Games B56: Classical Sicilian: Unusual Lines} ({Much worse is} 8... Nxe4 $6 9. fxe4 Qh4+ 10. Kd2 $16) 9. exd5 {[%emt 0:00:26]} Ne7 {[%emt 0:00:33]} (9... Nb8 10. Be3 Be7 11. c4 O-O 12. Bd3 Nbd7 13. O-O Nh5 14. Qd2 f5 15. Na5 Qc7 16. b4 e4 17. fxe4 f4 18. Bd4 Bf6 {½-½ (58) Kaczur,F (2459)-Demchenko,A (2671) Lisbon 2018}) 10. Bb5+ {[%emt 0:03:59]} Nd7 {[%emt 0:00:14]} 11. Be3 {[%emt 0:05:02]} a6 $146 {[%emt 0:02:53]} ({Predecessor:} 11... g6 12. h4 Bg7 13. h5 O-O 14. hxg6 fxg6 15. Qd2 Nf6 16. O-O-O {½-½ (35) Andras,T (2059)-Manik,M (2405) Stara Lubovna 2011}) 12. Bxd7+ {[%emt 0:01:27]} Qxd7 {[%emt 0:00:08]} 13. c4 {[%emt 0:01:41]} Ng6 {[%emt 0:06:22]} 14. O-O {[%emt 0:03:49]} Be7 {[%emt 0:01:10]} 15. Qe2 {[%emt 0:06:45]} O-O {[%emt 0:01:42]} 16. Rac1 {[%emt 0:04:26]} Rac8 {[%emt 0:04:30]} 17. Nd2 {[%emt 0:03:11]} Qd8 {[%emt 0:09:28]} 18. Rfd1 {[%emt 0:07:33]} f5 {[%emt 0:08:58]} 19. b4 {[%emt 0:05:26]} b6 {[%emt 0:08:36]} 20. Bf2 {[%emt 0:07:44]} Nf4 {[%emt 0:03:35]} 21. Qf1 {[%emt 0:03:54]} Rf6 {[%emt 0:04:14]} (21... Bg5 $15) 22. g3 {[%emt 0:06:14]} Rg6 {[%emt 0:03:35]} 23. Kh1 {[%emt 0:01:38]} Nh5 {[%emt 0:00:12]} 24. Qh3 {[%emt 0:02:30]} (24. c5 $16) 24... Qf8 $1 {[%emt 0:07:21]} 25. a4 {[%emt 0:06:17]} (25. Bxb6 $2 Nxg3+ 26. hxg3 Rh6 $17) 25... Rh6 {[%emt 0:03:15]} 26. Qg2 {[%emt 0:01:33]} Qd8 {[%emt 0:03:31]} 27. Nb3 {[%emt 0:03:16] [#]} (27. c5 $11) 27... a5 {[%emt 0:05:32]} (27... f4 $1 $17 28. g4 Ng3+ 29. Bxg3 fxg3 30. Qxg3 Bg5) 28. bxa5 {[%emt 0:01:50]} bxa5 {[%emt 0:00:06]} 29. Nd2 {[%emt 0:01:02]} Bg5 {[%emt 0:00:39]} 30. Be1 {[%emt 0:02:11]} Qd7 {[%emt 0:01:20]} 31. Ra1 {[%emt 0:00:50]} Bxd2 {[%emt 0:01:53]} 32. Bxd2 {[%emt 0:00:20]} Rg6 {[%emt 0:00:21]} 33. Qh3 {[%emt 0:01:37]} Nf6 {[%emt 0:00:46]} 34. Rdc1 {[%emt 0:01:01]} e4 {[%emt 0:01:06]} 35. fxe4 {[%emt 0:01:19]} (35. Qf1 $11 {remains equal.}) 35... Nxe4 {[%emt 0:00:09]} 36. Be1 {[%emt 0:00:36]} Rf6 {[%emt 0:00:59]} 37. Rc2 {[%emt 0:01:09]} Rc5 {[%emt 0:00:58]} (37... Qe8 $17 38. Qg2 Rf7) 38. Qg2 {[%emt 0:01:28]} Rf8 $15 {[%emt 0:00:43]} 1/2-1/2

[Event "FIDE WCCC G12 2018"]
[Site "Santiago de Compostela"]
[Date "2018.11.08"]
[Round "4"]
[White "Shuqja, Klean"]
[Black "Mihelic, Vesna"]
[Result "1/2-1/2"]
[ECO "C96"]
[WhiteElo "1798"]
[BlackElo "1741"]
[Annotator "NA"]
[PlyCount "62"]
[EventDate "2018.11.04"]
[EventType "swiss"]
[EventCountry "ESP"]
[SourceTitle "playchess.com"]
[Source "ChessBase"]
[SourceQuality "1"]
[TimeControl "40/5400+30:1800+30"]

1. e4 {[%emt 0:00:00]} e5 {[%emt 0:00:00]} 2. Nf3 {[%emt 0:00:00]} Nc6 {[%emt 0:00:00]} 3. Bb5 {[%emt 0:00:00]} a6 {[%emt 0:00:00]} 4. Ba4 {[%emt 0:00:00]} Nf6 {[%emt 0:00:08]} 5. O-O {[%emt 0:00:03]} b5 {[%emt 0:00:26]} 6. Bb3 {[%emt 0:00:01]} d6 {[%emt 0:01:03]} 7. Re1 {[%emt 0:04:16]} Be7 {[%emt 0:01:02]} 8. c3 {[%emt 0:04:36]} O-O {[%emt 0:01:09]} 9. h3 {[%emt 0:02:07]} Na5 {[%emt 0:01:43]} 10. Bc2 {[%emt 0:01:10]} c5 {[%emt 0:01:16]} 11. d3 {[%emt 0:02:21]} Qc7 {[%emt 0:04:14]} 12. Nbd2 {[%emt 0:01:15]} Bd7 {[%emt 0:03:22]} 13. Nf1 {[%emt 0:00:45]} Nb7 {[%emt 0:02:33]} 14. Ng3 {[%emt 0:03:38]} a5 {[%emt 0:04:04]} 15. Nh2 {[%emt 0:08:14]} d5 {[%emt 0:10:23]} 16. Qf3 {[%emt 0:09:01]} dxe4 {[%emt 0:12:50]} 17. dxe4 {[%emt 0:01:23]} Nd6 {[%emt 0:01:20]} 18. Ng4 {[%emt 0:12:00]} Nxg4 {[%emt 0:06:12]} 19. hxg4 {[%emt 0:00:03]} Rfe8 {[%emt 0:06:21]} 20. Nf5 {[%emt 0:05:28]} Bf8 {[%emt 0:00:24]} 21. g5 {[%emt 0:07:07]} Nxf5 {[%emt 0:14:16]} 22. exf5 {[%emt 0:00:03]} Bc6 {[%emt 0:00:53]} 23. Qg4 {[%emt 0:02:16]} Bd7 {[%emt 0:06:51]} 24. Re3 {[%emt 0:03:58]} Qc8 {[%emt 0:01:22]} 25. Rh3 {[%emt 0:07:46]} e4 {[%emt 0:02:35]} 26. g6 {[%emt 0:14:01]} Bxf5 {[%emt 0:07:23]} 27. gxf7+ {[%emt 0:01:53]} Kxf7 {[%emt 0:00:02]} 28. Qh5+ {[%emt 0:02:25]} Bg6 {[%emt 0:00:50]} 29. Qd5+ {[%emt 0:00:43]} Qe6 {[%emt 0:04:10]} 30. Qb7+ {[%emt 0:01:12]} Kg8 {[%emt 0:00:01]} 31. Qxb5 {[%emt 0:00:46]} Kh8 {[%emt 0:00:59]} 1/2-1/2

[Event "FIDE WCCC G12 2018"]
[Site "Santiago de Compostela"]
[Date "2018.11.08"]
[Round "4"]
[White "Zvereva, Margarita"]
[Black "Volovich, Julia"]
[Result "1/2-1/2"]
[ECO "C15"]
[WhiteElo "1787"]
[BlackElo "1735"]
[Annotator "NA RC"]
[PlyCount "120"]
[EventDate "2018.11.04"]
[EventType "swiss"]
[EventCountry "ESP"]
[SourceTitle "playchess.com"]
[Source "ChessBase"]
[SourceQuality "1"]
[TimeControl "40/5400+30:1800+30"]

1. e4 {[%emt 0:00:00]} e6 {[%emt 0:00:00]} 2. d4 {[%emt 0:00:00]} d5 {[%emt 0:00:00]} 3. Nc3 {[%emt 0:00:00]} Bb4 {[%emt 0:00:00]} 4. exd5 {[%emt 0:01:17]} exd5 {[%emt 0:00:00]} 5. Bd3 {[%emt 0:00:14]} Nc6 {[%emt 0:00:04]} 6. Nge2 {[%emt 0:02:39]} Nge7 {[%emt 0:01:59]} 7. O-O {[%emt 0:04:51]} Bf5 {[%emt 0:04:39]} 8. Bxf5 {[%emt 0:04:13]} Nxf5 {[%emt 0:00:23]} 9. Qd3 {[%emt 0:01:21]} Qd7 {[%emt 0:03:10]} 10. Bf4 {[%emt 0:07:22]} O-O-O {[%emt 0:09:00]} 11. Nb5 {[%emt 0:07:02]} Nd6 {[%emt 0:06:00]} 12. c3 {[%emt 0:02:46]} Nxb5 {[%emt 0:02:52]} 13. Qxb5 {[%emt 0:00:19]} Be7 {[%emt 0:03:27]} 14. a4 {[%emt 0:07:31]} g5 {[%emt 0:04:27]} 15. Bd2 {[%emt 0:00:32]} f5 {[%emt 0:07:01]} 16. f4 {[%emt 0:08:53]} Rhg8 {[%emt 0:11:17]} 17. Qd3 {[%emt 0:01:32]} Rdf8 {[%emt 0:02:22]} 18. b4 {[%emt 0:02:51]} Rg6 {[%emt 0:08:52]} 19. a5 {[%emt 0:05:28]} Rfg8 {[%emt 0:02:01]} 20. Rf2 {[%emt 0:01:07]} Nd8 {[%emt 0:03:49]} 21. b5 {[%emt 0:13:21]} c5 {[%emt 0:01:54]} 22. bxc6 {[%emt 0:09:03]} Rxc6 {[%emt 0:04:45]} 23. Rc1 {[%emt 0:02:59]} g4 {[%emt 0:06:11]} 24. c4 {[%emt 0:02:02]} Nf7 {[%emt 0:01:48]} 25. Rff1 {[%emt 0:01:55]} Kb8 {[%emt 0:03:11]} 26. c5 {[%emt 0:03:42]} Bh4 {[%emt 0:03:25]} 27. Rb1 {[%emt 0:01:21]} Ka8 {[%emt 0:03:36]} 28. Rb3 {[%emt 0:02:30]} Rb8 {[%emt 0:02:08]} 29. Rfb1 {[%emt 0:00:24]} Qc8 {[%emt 0:00:27]} 30. Nc3 {[%emt 0:00:35]} Qd7 {[%emt 0:01:06]} 31. a6 {[%emt 0:02:20]} b6 {[%emt 0:00:49]} 32. Na4 {[%emt 0:01:29]} Bd8 {[%emt 0:01:20]} 33. Ba5 {[%emt 0:01:10]} Qe6 {[%emt 0:01:01]} 34. cxb6 {[%emt 0:01:48]} axb6 {[%emt 0:00:54]} 35. Qb5 {[%emt 0:01:18]} Bc7 {[%emt 0:00:35]} 36. Bd2 {[%emt 0:00:50]} Ka7 {[%emt 0:00:48]} 37. Re1 {[%emt 0:00:49]} Qd7 {[%emt 0:00:13]} 38. Rc3 {[%emt 0:00:37]} Rd6 {[%emt 0:00:07]} 39. Qb4 {[%emt 0:00:36]} Nd8 {[%emt 0:00:26]} 40. Rec1 {[%emt 0:00:00]} Rc8 {[%emt 0:00:00]} 41. Qb3 {[%emt 0:12:40]} Rc6 {[%emt 0:05:16]} 42. Rxc6 {[%emt 0:06:42]} Nxc6 {[%emt 0:00:09]} 43. Qd3 {[%emt 0:03:32]} Bd8 {[%emt 0:04:30]} 44. Nc3 {[%emt 0:02:07]} Ka8 {[%emt 0:03:07]} 45. Nb5 {[%emt 0:01:38]} Na5 {[%emt 0:01:58]} 46. Rxc8+ {[%emt 0:01:29]} Qxc8 {[%emt 0:00:06]} 47. Nd6 {[%emt 0:00:46]} Qe6 {[%emt 0:05:02]} 48. Nxf5 {[%emt 0:00:34]} Nc4 {[%emt 0:00:56]} 49. Ne3 {[%emt 0:03:14]} Nxd2 {[%emt 0:01:04]} 50. Qxd2 {[%emt 0:00:10]} h5 {[%emt 0:03:46]} 51. Kf2 {[%emt 0:00:30]} Qe4 {[%emt 0:01:20]} 52. g3 {[%emt 0:02:27]} Ka7 53. Qd1 {[%emt 0:01:15]} Bf6 {[%emt 0:04:24]} 54. Nc2 {[%emt 0:00:18]} h4 {[%emt 0:00:34]} 55. Qe2 {[%emt 0:00:40]} Bxd4+ {[%emt 0:00:18]} 56. Nxd4 {[%emt 0:00:03]} Qxd4+ {[%emt 0:00:06]} 57. Kf1 {[%emt 0:00:39]} Qa1+ {[%emt 0:00:31]} 58. Kf2 {[%emt 0:00:22]} Qd4+ {[%emt 0:00:07]} 59. Kf1 {[%emt 0:00:06]} Qa1+ {[%emt 0:01:36]} 60. Kf2 {[%emt 0:00:08]} Qd4+ {[%emt 0:00:24]} 1/2-1/2

[Event "FIDE WCCC G12 2018"]
[Site "Santiago de Compostela"]
[Date "2018.11.08"]
[Round "4"]
[White "Nurmanova, Alua"]
[Black "Baalla, Nura"]
[Result "1/2-1/2"]
[ECO "C05"]
[WhiteElo "1780"]
[BlackElo "1565"]
[Annotator "NA RC"]
[PlyCount "67"]
[EventDate "2018.11.04"]
[EventType "swiss"]
[EventCountry "ESP"]
[SourceTitle "playchess.com"]
[Source "ChessBase"]
[SourceQuality "1"]
[TimeControl "40/5400+30:1800+30"]

1. e4 {[%emt 0:00:00]} e6 {[%emt 0:00:00]} 2. d4 {[%emt 0:00:00]} d5 {[%emt 0:00:00]} 3. Nd2 {[%emt 0:00:00]} Nf6 {[%emt 0:00:00]} 4. e5 {[%emt 0:00:00]} Nfd7 {[%emt 0:00:00]} 5. Bd3 {[%emt 0:00:03]} c5 {[%emt 0:00:00]} 6. c3 {[%emt 0:00:08]} Nc6 {[%emt 0:00:00]} 7. Ngf3 {[%emt 0:00:08]} Qb6 {[%emt 0:00:24]} 8. O-O {[%emt 0:02:02]} cxd4 {[%emt 0:03:54]} 9. cxd4 {[%emt 0:00:12]} Nxd4 {[%emt 0:04:20]} 10. Nxd4 {[%emt 0:00:29]} Qxd4 {[%emt 0:00:02]} 11. Nf3 {[%emt 0:00:56]} Qb6 {[%emt 0:02:42]} 12. Qa4 {[%emt 0:03:08]} g6 {[%emt 0:04:12]} 13. Rb1 {[%emt 0:07:45]} Qb4 {[%emt 0:05:00]} 14. Qc2 {[%emt 0:07:25]} Bg7 {[%emt 0:10:56]} 15. a3 {[%emt 0:08:14]} Qc5 {[%emt 0:06:16]} 16. Qa4 {[%emt 0:13:43]} O-O {[%emt 0:07:22]} 17. Be3 {[%emt 0:02:18]} Qe7 {[%emt 0:00:54]} 18. Bd4 {[%emt 0:05:29]} Nc5 {[%emt 0:07:47]} 19. Qb4 {[%emt 0:05:15]} b6 {[%emt 0:03:53]} 20. Rfc1 {[%emt 0:07:21]} f6 {[%emt 0:13:31]} 21. exf6 {[%emt 0:18:03]} Bxf6 {[%emt 0:00:17]} 22. Bxc5 {[%emt 0:00:10]} bxc5 {[%emt 0:00:14]} 23. Qxc5 {[%emt 0:00:58]} Rb8 {[%emt 0:05:44]} 24. Qxe7 {[%emt 0:03:02]} Bxe7 {[%emt 0:00:02]} 25. Nd4 {[%emt 0:05:07]} Bf6 {[%emt 0:08:48]} 26. Nc6 {[%emt 0:01:18]} Rb3 {[%emt 0:03:10]} 27. Be2 {[%emt 0:05:44]} Bd7 {[%emt 0:05:37]} 28. Na5 {[%emt 0:04:16]} Rxb2 {[%emt 0:01:09]} 29. Rxb2 {[%emt 0:00:08]} Bxb2 {[%emt 0:00:01]} 30. Rc7 {[%emt 0:00:04]} Ba4 {[%emt 0:01:38]} 31. Bg4 {[%emt 0:00:17]} Rf6 {[%emt 0:03:23]} 32. Rxa7 {[%emt 0:01:00]} h5 {[%emt 0:03:22]} 33. Bf3 {[%emt 0:00:19]} Bc2 {[%emt 0:00:34]} 34. Nc6 {[%emt 0:00:41]} 1/2-1/2